fUSD/lending_fUSD_20250219
["ID","MTS","AMOUNT","RATE_DAILY","PERIOD"]
[353655022,1739983837775,-556.03,0.00013147,2]
[353655024,1739983837784,-1144.25,0.00013147,2]
[353655026,1739983837794,-709.48,0.00013147,2]
[353655028,1739983837803,-1622.453762,0.00013147,2]
[353655030,1739983837813,-159.601526,0.00013147,2]
[353655032,1739983837823,-500.0,0.00013147,2]
[353655034,1739983837832,-500.0,0.00013147,2]
[353655036,1739983837842,-152.680739,0.00013147,2]
[353655038,1739983837851,-964.02,0.00013147,2]
[353655040,1739983837860,-1119.78,0.00013147,2]
[353655042,1739983837870,-757.63,0.00013147,2]
[353655044,1739983837880,-1096.91,0.00013147,2]
[353655046,1739983837889,-1398.45,0.00013147,2]
[353655048,1739983837899,-500.0,0.00013147,2]
[353655051,1739983837908,-1636.746192,0.00013147,2]
[353655053,1739983837917,-566.89,0.00013147,2]
[353655055,1739983837927,-500.0,0.00013147,2]
[353655056,1739983837936,-500.0,0.00013147,2]
[353655058,1739983837946,-527.13,0.00013147,2]
[353655060,1739983837957,-500.0,0.00013147,2]
[353655063,1739983837967,-500.0,0.00013147,2]
[353655065,1739983837976,-500.0,0.00013147,2]
[353655067,1739983837986,-500.0,0.00013147,2]
[353655069,1739983837996,-500.0,0.00013147,2]
[353655070,1739983838006,-500.0,0.00013147,2]
[353655072,1739983838015,-893.79,0.00013147,2]
[353655075,1739983838031,-902.01,0.00013147,2]
[353655077,1739983838041,-1418.08,0.00013147,2]
[353655078,1739983838050,-500.0,0.00013147,2]
[353655080,1739983838060,-563.97,0.00013147,2]
[353655110,1739983838357,-500.0,0.00013147,2]
[353655112,1739983838366,-719.71,0.00013147,2]
[353655114,1739983838376,-1438.03,0.00013147,2]
[353655116,1739983838386,-522.14,0.00013147,2]
[353655118,1739983838395,-500.0,0.00013147,2]
[353655120,1739983838404,-905.71,0.00013147,2]
[353655122,1739983838413,-500.0,0.00013147,2]
[353655124,1739983838423,-500.0,0.00013147,2]
[353655126,1739983838433,-500.0,0.00013147,2]
[353655128,1739983838442,-500.0,0.00013147,2]
[353655130,1739983838452,-1507.27,0.00013147,2]
[353655132,1739983838461,-500.0,0.00013147,2]
[353655134,1739983838471,-500.0,0.00013147,2]
[353655136,1739983838480,-2228.43,0.00013147,2]
[353655138,1739983838489,-500.0,0.00013147,2]
[353655140,1739983838498,-720.89,0.00013147,2]
[353655142,1739983838510,-1586.99,0.00013147,2]
[353655144,1739983838519,-500.0,0.00013147,2]
[353655146,1739983838529,-500.0,0.00013147,2]
[353655148,1739983838538,-2309.28,0.00013147,2]
[353655150,1739983838547,-500.0,0.00013147,2]
[353655152,1739983838557,-500.0,0.00013147,2]
[353655154,1739983838566,-660.51,0.00013147,2]
[353655156,1739983838576,-500.0,0.00013147,2]
[353655158,1739983838586,-500.0,0.00013147,2]
[353655160,1739983838595,-1041.48,0.00013147,2]
[353655162,1739983838604,-500.0,0.00013147,2]
[353655164,1739983838613,-1245.31,0.00013147,2]
[353655166,1739983838623,-500.0,0.00013147,2]
[353655168,1739983838632,-500.0,0.00013147,2]
[353655170,1739983838642,-730.23,0.00013147,2]
[353655172,1739983838651,-500.0,0.00013147,2]
[353655174,1739983838661,-1608.69,0.00013147,2]
[353655176,1739983838671,-1401.62,0.00013147,2]
[353655178,1739983838680,-1181.78,0.00013147,2]
[353655180,1739983838690,-1369.58,0.00013147,2]
[353655182,1739983838699,-500.0,0.00013147,2]
[353655184,1739983838708,-500.0,0.00013147,2]
[353655186,1739983838718,-1451.33,0.00013147,2]
[353655188,1739983838727,-805.89,0.00013147,2]
[353655190,1739983838737,-2929.86,0.00013147,2]
[353655192,1739983838747,-500.0,0.00013147,2]
[353655194,1739983838758,-500.0,0.00013147,2]
[353655196,1739983838768,-1429.24,0.00013147,2]
[353655198,1739983838777,-1020.94,0.00013147,2]
[353655200,1739983838787,-500.0,0.00013147,2]
[353655202,1739983838797,-500.18623637,0.00013147,2]
[353655204,1739983838807,-500.0,0.00013147,2]
[353655206,1739983838816,-2346.71,0.00013147,2]
[353655208,1739983838826,-500.0,0.00013147,2]
[353655210,1739983838836,-500.0,0.00013147,2]
[353655212,1739983838846,-2630.41,0.00013147,2]
[353655214,1739983838855,-1873.49,0.00013147,2]
[353655216,1739983838865,-500.0,0.00013147,2]
[353655218,1739983838875,-1587.71,0.00013147,2]
[353655220,1739983838883,-4514.81,0.00013147,2]
[353655222,1739983838893,-1082.19,0.00013147,2]
[353655224,1739983838903,-754.6,0.00013147,2]
[353655226,1739983838912,-653.85,0.00013147,2]
[353655228,1739983838922,-500.0,0.00013147,2]
[353655230,1739983838931,-847.19,0.00013147,2]
[353655232,1739983838941,-500.0,0.00013147,2]
[353655234,1739983838951,-1027.53,0.00013147,2]
[353655236,1739983838960,-757.43,0.00013147,2]
[353655238,1739983838969,-500.0,0.00013147,2]
[353655240,1739983838978,-1502.28,0.00013147,2]
[353655242,1739983838988,-1743.11,0.00013147,2]
[353655244,1739983838998,-1156.78,0.00013147,2]
[353655246,1739983839009,-2439.25,0.00013147,2]
[353655248,1739983839018,-500.0,0.00013147,2]
[353655250,1739983839029,-2217.02,0.00013147,2]
[353655252,1739983839039,-500.0,0.00013147,2]
[353655254,1739983839048,-763.09,0.00013147,2]
[353655256,1739983839058,-4026.9,0.00013147,2]
[353655258,1739983839068,-4232.27,0.00013147,2]
[353655260,1739983839080,-500.0,0.00013147,2]
[353655262,1739983839089,-500.0,0.00013147,2]
[353655264,1739983839099,-2133.94,0.00013147,2]
[353655266,1739983839110,-500.0,0.00013147,2]
[353655268,1739983839120,-996.99,0.00013147,2]
[353655270,1739983839130,-637.25,0.00013147,2]
[353655271,1739983839139,-500.0,0.00013147,2]
[353655272,1739983839149,-502.238208,0.00013147,2]
[353655273,1739983839158,-1715.81,0.00013147,2]
[353655274,1739983839168,-500.0,0.00013147,2]
[353655275,1739983839177,-500.0,0.00013147,2]
[353655276,1739983839186,-500.0,0.00013147,2]
[353655277,1739983839195,-1847.88386699,0.00013147,2]
[353655278,1739983839210,-735.01250073,0.00013147,2]
[353655279,1739983839228,-1417.22363228,0.00013147,2]
[353655281,1739983839237,-1159.46,0.00013147,2]
[353655283,1739983839247,-2116.20015754,0.00013147,2]
[353655285,1739983839261,-116.06984246,0.00013147,2]
[353655288,1739983839272,-647.93015754,0.00013147,2]
[353655290,1739983839291,-816.53984246,0.00013147,2]
[353655292,1739983839300,-1208.90611392,0.00013147,2]
[353655295,1739983839312,-1797.78388608,0.00013147,2]
[353655297,1739983839322,-2224.1,0.00013147,2]
[353655299,1739983839331,-487.82834707,0.00013147,2]
[353655301,1739983839343,-161.98165293,0.00013147,2]
[353655303,1739983839352,-500.0,0.00013147,2]
[353655305,1739983839361,-2249.29,0.00013147,2]
[353655307,1739983839370,-500.0,0.00013147,2]
[353655309,1739983839380,-500.0,0.00013147,2]
[353655311,1739983839390,-500.0,0.00013147,2]
[353655313,1739983839400,-2877.1,0.00013147,2]
[353655315,1739983839410,-500.0,0.00013147,2]
[353655317,1739983839420,-500.0,0.00013147,2]
[353655319,1739983839429,-884.22,0.00013147,2]
[353655321,1739983839439,-326.71214826,0.00013147,2]
[353655324,1739983839448,-3996.87,0.00013147,2]
[353655326,1739983839457,-500.0,0.00013147,2]
[353655328,1739983839467,-500.0,0.00013147,2]
[353655330,1739983839476,-275.91172647,0.00013147,2]
[353655332,1739983839488,-276.23135521,0.00013147,2]
[353655391,1739983840065,-450.40691832,0.00013147,2]
[353655393,1739983840076,-801.5,0.00013147,2]
[353655395,1739983840086,-1228.83785986,0.00013147,2]
[353655397,1739983840097,-1575.70214014,0.00013147,2]
[353655399,1739983840108,-798.68044868,0.00013147,2]
[353655401,1739983840219,-336.14119497,0.00013147,2]
[353655403,1739983840231,-319.83586182,0.00013147,2]
[353655406,1739983840258,-407.96249453,0.00013147,2]
[353655408,1739983840268,-500.0,0.00013147,2]
[353655410,1739983840278,-55.23502547,0.00013147,2]
[353655415,1739983840321,-2976.26497453,0.00013147,2]
[353655417,1739983840331,-958.26,0.00013147,2]
[353655419,1739983840341,-3009.47,0.00013147,2]
[353655421,1739983840351,-500.0,0.00013147,2]
[353655423,1739983840361,-500.0,0.00013147,2]
[353655424,1739983840370,-3118.77,0.00013147,2]
[353655425,1739983840381,-1343.84,0.00013147,2]
[353655426,1739983840390,-8660.06,0.00013147,2]
[353655427,1739983840400,-3128.6,0.00013147,2]
[353655428,1739983840411,-500.0,0.00013147,2]
[353655429,1739983840421,-3657.37,0.00013147,2]
[353655430,1739983840431,-500.0,0.00013147,2]
[353655431,1739983840440,-2459.84,0.00013147,2]
[353655432,1739983840449,-1351.54,0.00013147,2]
[353655433,1739983840459,-500.0,0.00013147,2]
[353655434,1739983840469,-2366.81,0.00013147,2]
[353655435,1739983840478,-1908.65,0.00013147,2]
[353655436,1739983840488,-500.0,0.00013147,2]
[353655437,1739983840498,-3231.04,0.00013147,2]
[353655438,1739983840509,-1317.88,0.00013147,2]
[353655439,1739983840519,-2664.93,0.00013147,2]
[353655440,1739983840528,-500.0,0.00013147,2]
[353655441,1739983840537,-2579.82,0.00013147,2]
[353655442,1739983840547,-500.0,0.00013147,2]
[353655443,1739983840557,-2595.04,0.00013147,2]
[353655444,1739983840567,-500.0,0.00013147,2]
[353655445,1739983840576,-632.12,0.00013147,2]
[353655446,1739983840586,-2505.06,0.00013147,2]
[353655447,1739983840595,-500.0,0.00013147,2]
[353655448,1739983840605,-500.0,0.00013147,2]
[353655449,1739983840614,-1360.89,0.00013147,2]
[353655450,1739983840623,-840.52,0.00013147,2]
[353655451,1739983840632,-1523.84,0.00013147,2]
[353655452,1739983840642,-500.0,0.00013147,2]
[353655453,1739983840651,-6240.14,0.00013147,2]
[353655454,1739983840660,-500.0,0.00013147,2]
[353655455,1739983840669,-1878.53,0.00013147,2]
[353655456,1739983840678,-500.0,0.00013147,2]
[353655457,1739983840688,-500.0,0.00013147,2]
[353655458,1739983840697,-1083.46,0.00013147,2]
[353655459,1739983840706,-500.0,0.00013147,2]
[353655460,1739983840715,-2400.8,0.00013147,2]
[353655461,1739983840725,-500.0,0.00013147,2]
[353655462,1739983840735,-500.0,0.00013147,2]
[353655463,1739983840745,-500.0,0.00013147,2]
[353655464,1739983840756,-601.07,0.00013147,2]
[353655465,1739983840765,-2791.46,0.00013147,2]
[353655466,1739983840775,-500.0,0.00013147,2]
[353655467,1739983840784,-500.0,0.00013147,2]
[353655468,1739983840794,-321.89406912,0.00013147,2]
[353655469,1739983840803,-500.0,0.00013147,2]
[353655470,1739983840813,-1103.37,0.00013147,2]
[353655471,1739983840823,-500.0,0.00013147,2]
[353655472,1739983840832,-500.0,0.00013147,2]
[353655473,1739983840842,-2672.08,0.00013147,2]
[353655474,1739983840851,-3612.7,0.00013147,2]
[353655475,1739983840861,-500.0,0.00013147,2]
[353655476,1739983840870,-1626.85,0.00013147,2]
[353655477,1739983840880,-1240.85,0.00013147,2]
[353655478,1739983840890,-500.0,0.00013147,2]
[353655479,1739983840899,-500.0,0.00013147,2]
[353655480,1739983840908,-500.0,0.00013147,2]
[353655481,1739983840918,-727.89,0.00013147,2]
[353655482,1739983840927,-1359.38,0.00013147,2]
[353655484,1739983840937,-865.40053686,0.00013147,2]
[353655518,1739983841351,-295.22946314,0.00013147,2]
[353655520,1739983841361,-4094.01,0.00013147,2]
[353655522,1739983841370,-664.76,0.00013147,2]
[353655524,1739983841379,-500.0,0.00013147,2]
[353655526,1739983841389,-500.0,0.00013147,2]
[353655528,1739983841398,-500.0,0.00013147,2]
[353655530,1739983841407,-606.76,0.00013147,2]
[353655532,1739983841416,-2636.24,0.00013147,2]
[353655534,1739983841425,-500.0,0.00013147,2]
[353655535,1739983841434,-500.0,0.00013147,2]
[353655537,1739983841443,-500.0,0.00013147,2]
[353655539,1739983841453,-1667.4,0.00013147,2]
[353655541,1739983841462,-500.0,0.00013147,2]
[353655543,1739983841471,-500.0,0.00013147,2]
[353655545,1739983841481,-500.0,0.00013147,2]
[353655547,1739983841491,-2469.7,0.00013147,2]
[353655549,1739983841500,-1238.11,0.00013147,2]
[353655551,1739983841510,-919.89,0.00013147,2]
[353655553,1739983841520,-2239.11,0.00013147,2]
[353655555,1739983841529,-500.0,0.00013147,2]
[353655557,1739983841538,-500.0,0.00013147,2]
[353655559,1739983841548,-500.0,0.00013147,2]
[353655561,1739983841558,-500.0,0.00013147,2]
[353655564,1739983841568,-1354.74,0.00013147,2]
[353655565,1739983841577,-500.0,0.00013147,2]
[353655567,1739983841587,-2699.3,0.00013147,2]
[353655569,1739983841596,-638.33,0.00013147,2]
[353655571,1739983841606,-500.0,0.00013147,2]
[353655573,1739983841615,-500.0,0.00013147,2]
[353655576,1739983841625,-934.37,0.00013147,2]
[353655577,1739983841634,-500.0,0.00013147,2]
[353655579,1739983841643,-259.63317002,0.00013147,2]
[353655581,1739983841652,-500.0,0.00013147,2]
[353655583,1739983841662,-1706.88,0.00013147,2]
[353655585,1739983841671,-500.0,0.00013147,2]
[353655613,1739983841927,-500.0,0.00013147,2]
[353655615,1739983841937,-1537.62,0.00013147,2]
[353655617,1739983841947,-500.0,0.00013147,2]
[353655619,1739983841957,-1207.6,0.00013147,2]
[353655621,1739983841966,-500.0,0.00013147,2]
[353655623,1739983841975,-500.0,0.00013147,2]
[353655625,1739983841984,-2514.47,0.00013147,2]
[353655627,1739983841995,-500.0,0.00013147,2]
[353655629,1739983842005,-500.0,0.00013147,2]
[353655631,1739983842014,-2616.88,0.00013147,2]
[353655633,1739983842024,-500.0,0.00013147,2]
[353655635,1739983842038,-3342.34,0.00013147,2]
[353655637,1739983842047,-500.0,0.00013147,2]
[353655639,1739983842056,-571.0,0.00013147,2]
[353655642,1739983842066,-1306.13,0.00013147,2]
[353655643,1739983842076,-500.0,0.00013147,2]
[353655645,1739983842086,-70685.1720442,0.00013148,2]
[353655648,1739983842095,-758.15,0.00013148,2]
[353655650,1739983842104,-502.7174958,0.00013148,2]
[353655652,1739983842116,-500.0,0.00013148,2]
[353655653,1739983842126,-500.0,0.00013148,2]
[353655655,1739983842135,-500.0,0.00013148,2]
[353655657,1739983842145,-500.0,0.00013148,2]
[353655659,1739983842154,-838.18,0.00013148,2]
[353655661,1739983842164,-500.0,0.00013148,2]
[353655664,1739983842173,-786.75,0.00013148,2]
[353655665,1739983842183,-500.0,0.00013148,2]
[353655667,1739983842192,-500.0,0.00013148,2]
[353655670,1739983842202,-595.45,0.00013148,2]
[353655672,1739983842212,-500.0,0.00013148,2]
[353655674,1739983842221,-500.0,0.00013148,2]
[353655675,1739983842230,-643.12,0.00013148,2]
[353655677,1739983842241,-1001.33,0.00013148,2]
[353655679,1739983842254,-500.0,0.00013148,2]
[353655681,1739983842264,-158.568017,0.00013148,2]
[353655683,1739983842274,-500.0,0.00013148,2]
[353655685,1739983842283,-1288.62,0.00013148,2]
[353655687,1739983842294,-2442.95,0.00013148,2]
[353655689,1739983842303,-653.85,0.00013148,2]
[353655692,1739983842313,-2090.1,0.00013148,2]
[353655694,1739983842322,-3048.22,0.00013148,2]
[353655696,1739983842331,-2037.02,0.00013148,2]
[353655698,1739983842340,-2860.05,0.00013148,2]
[353655700,1739983842350,-3603.34,0.00013148,2]
[353655702,1739983842359,-1730.99,0.00013148,2]
[353655704,1739983842368,-2053.64,0.00013148,2]
[353655706,1739983842377,-1818.91,0.00013148,2]
[353655708,1739983842387,-3087.52,0.00013148,2]
[353655710,1739983842396,-940.02,0.00013148,2]
[353655712,1739983842406,-1906.84,0.00013148,2]
[353655715,1739983842416,-274.58042911,0.00013148,2]
[353655718,1739983842425,-2424.11,0.00013148,2]
[353655720,1739983842434,-3241.19,0.00013148,2]
[353655722,1739983842443,-2109.25,0.00013148,2]
[353655724,1739983842453,-2718.75,0.00013148,2]
[353655726,1739983842462,-683.07,0.00013148,2]
[353655728,1739983842471,-1733.78,0.00013148,2]
[353655730,1739983842481,-508.84231953,0.00013148,2]
[353655733,1739983842490,-3014.28,0.00013148,2]
[353655735,1739983842499,-500.0,0.00013149,2]
[353655738,1739983842509,-503.77257148,0.00013149,2]
[353655741,1739983842519,-503.45999476,0.00013149,2]
[353655743,1739983842528,-594.24,0.00013149,2]
[353655745,1739983842537,-500.0,0.00013149,2]
[353655747,1739983842546,-500.0,0.00013149,2]
[353655749,1739983842555,-500.0,0.00013149,2]
[353655751,1739983842565,-500.0,0.00013149,2]
[353655753,1739983842574,-923.91,0.00013149,2]
[353655755,1739983842584,-500.0,0.00013149,2]
[353655757,1739983842594,-500.0,0.00013149,2]
[353655759,1739983842605,-976.01,0.00013149,2]
[353655761,1739983842614,-500.0,0.00013149,2]
[353655763,1739983842625,-500.0,0.00013149,2]
[353655765,1739983842634,-536.05,0.00013149,2]
[353655767,1739983842645,-500.0,0.00013149,2]
[353655769,1739983842655,-714.18,0.00013149,2]
[353655771,1739983842665,-500.0,0.00013149,2]
[353655773,1739983842675,-687.08,0.00013149,2]
[353655775,1739983842684,-500.0,0.00013149,2]
[353655778,1739983842694,-500.0,0.00013149,2]
[353655780,1739983842703,-597.97,0.00013149,2]
[353655781,1739983842713,-687.03,0.00013149,2]
[353655784,1739983842723,-500.0,0.00013149,2]
[353655786,1739983842733,-500.0,0.00013149,2]
[353655788,1739983842743,-500.0,0.00013149,2]
[353655790,1739983842754,-500.0,0.00013149,2]
[353655792,1739983842764,-500.0,0.00013149,2]
[353655794,1739983842774,-500.79,0.00013149,2]
[353655796,1739983842783,-543.8250078,0.00013149,2]
[353655798,1739983842792,-500.0,0.00013149,2]
[353655800,1739983842802,-1124.1,0.00013149,2]
[353655802,1739983842811,-698.43,0.00013149,2]
[353655804,1739983842821,-946.51,0.00013149,2]
[353655806,1739983842829,-500.0,0.00013149,2]
[353655808,1739983842839,-500.0,0.00013149,2]
[353655810,1739983842848,-500.0,0.00013149,2]
[353655812,1739983842858,-832.47,0.00013149,2]
[353655814,1739983842867,-500.0,0.00013149,2]
[353655816,1739983842877,-500.0,0.00013149,2]
[353655818,1739983842887,-500.0,0.00013149,2]
[353655820,1739983842896,-500.0,0.00013149,2]
[353655822,1739983842905,-500.0,0.00013149,2]
[353655824,1739983842915,-500.0,0.00013149,2]
[353655825,1739983842923,-841.13,0.00013149,2]
[353655827,1739983842933,-500.0,0.00013149,2]
[353655830,1739983842944,-500.0,0.00013149,2]
[353655831,1739983842953,-1129.04,0.00013149,2]
[353655833,1739983842963,-722.74,0.00013149,2]
[353655835,1739983842972,-500.0,0.00013149,2]
[353655838,1739983842982,-380.13848496,0.00013149,2]
[353655840,1739983842992,-508.6420564,0.00013149,2]
[353655841,1739983843001,-500.0,0.00013149,2]
[353655844,1739983843012,-313.33376682,0.00013149,2]
[353655846,1739983843023,-500.0,0.00013149,2]
[353655848,1739983843038,-501.63340414,0.00013149,2]
[353655849,1739983843047,-500.0,0.00013149,2]
[353655852,1739983843057,-658.77,0.00013149,2]
[353655853,1739983843066,-500.0,0.00013149,2]
[353655855,1739983843076,-500.0,0.00013149,2]
[353655857,1739983843086,-603.43,0.00013149,2]
[353655859,1739983843096,-1047.31,0.00013149,2]
[353655861,1739983843106,-500.0,0.00013149,2]
[353655863,1739983843116,-500.0,0.00013149,2]
[353655865,1739983843126,-500.0,0.00013149,2]
[353655867,1739983843135,-500.0,0.00013149,2]
[353655869,1739983843144,-500.0,0.00013149,2]
[353655871,1739983843154,-500.0,0.00013149,2]
[353655873,1739983843163,-500.0,0.00013149,2]
[353655874,1739983843172,-500.0,0.00013149,2]
[353655875,1739983843182,-1235.13,0.00013149,2]
[353655876,1739983843191,-1360.14,0.00013149,2]
[353655877,1739983843202,-1045.3,0.00013149,2]
[353655878,1739983843211,-500.0,0.00013149,2]
[353655879,1739983843220,-947.08,0.00013149,2]
[353655880,1739983843230,-1261.45,0.00013149,2]
[353655881,1739983843239,-500.0,0.00013149,2]
[353655882,1739983843248,-608.87,0.00013149,2]
[353655884,1739983843260,-1213.36,0.00013149,2]
[353655886,1739983843269,-500.0,0.00013149,2]
[353655888,1739983843278,-500.0,0.00013149,2]
[353655890,1739983843287,-500.0,0.00013149,2]
[353655892,1739983843297,-306.42849422,0.00013149,2]
[353655894,1739983843306,-606.15,0.00013149,2]
[353655896,1739983843315,-500.0,0.00013149,2]
[353655898,1739983843325,-507.55,0.00013149,2]
[353655899,1739983843334,-500.0,0.00013149,2]
[353655901,1739983843344,-728.32,0.00013149,2]
[353655903,1739983843353,-997.23,0.00013149,2]
[353655905,1739983843363,-573.94228142,0.00013149,2]
[353655907,1739983843372,-871.39,0.00013149,2]
[353655909,1739983843382,-1003.09,0.00013149,2]
[353655911,1739983843391,-500.0,0.00013149,2]
[353655913,1739983843400,-926.49,0.00013149,2]
[353655915,1739983843409,-500.0,0.00013149,2]
[353655917,1739983843419,-500.0,0.00013149,2]
[353655919,1739983843428,-500.0,0.00013149,2]
[353655921,1739983843437,-567.0,0.00013149,2]
[353655923,1739983843446,-577.60250942,0.00013149,2]
[353655925,1739983843455,-1142.95,0.00013149,2]
[353655927,1739983843464,-500.0,0.00013149,2]
[353655929,1739983843474,-500.0,0.00013149,2]
[353655931,1739983843483,-906.32,0.00013149,2]
[353655933,1739983843493,-1211.35,0.00013149,2]
[353655935,1739983843502,-500.0,0.00013149,2]
[353655937,1739983843512,-500.0,0.00013149,2]
[353655938,1739983843522,-223.17838689,0.00013149,2]
[353655939,1739983843532,-500.0,0.00013149,2]
[353655940,1739983843541,-510.63,0.00013149,2]
[353655941,1739983843551,-500.0,0.00013149,2]
[353655942,1739983843561,-500.0,0.00013149,2]
[353655943,1739983843571,-500.0,0.00013149,2]
[353655944,1739983843581,-500.0,0.00013149,2]
[353655945,1739983843590,-620.6,0.00013149,2]
[353655946,1739983843601,-503.95674388,0.00013149,2]
[353655947,1739983843610,-500.0,0.00013149,2]
[353655948,1739983843620,-616.2,0.00013149,2]
[353655949,1739983843631,-506.98766438,0.00013149,2]
[353655950,1739983843640,-500.0,0.00013149,2]
[353655951,1739983843649,-786.48,0.00013149,2]
[353655952,1739983843660,-1073.38,0.00013149,2]
[353655953,1739983843669,-500.0,0.00013149,2]
[353655954,1739983843679,-202.72778357,0.00013149,2]
[353655955,1739983843688,-500.0,0.00013149,2]
[353655956,1739983843697,-674.91,0.00013149,2]
[353655957,1739983843707,-682.38,0.00013149,2]
[353655958,1739983843716,-500.0,0.00013149,2]
[353655959,1739983843726,-500.0,0.00013149,2]
[353655960,1739983843736,-500.0,0.00013149,2]
[353655961,1739983843746,-500.0,0.00013149,2]
[353655962,1739983843755,-824.47,0.00013149,2]
[353655963,1739983843764,-864.91,0.00013149,2]
[353655964,1739983843774,-1424.82,0.00013149,2]
[353655965,1739983843783,-500.0,0.00013149,2]
[353655966,1739983843793,-500.0,0.00013149,2]
[353655967,1739983843802,-1163.56,0.00013149,2]
[353655968,1739983843811,-544.97,0.00013149,2]
[353655969,1739983843821,-500.0,0.00013149,2]
[353655970,1739983843830,-1562.19,0.00013149,2]
[353655971,1739983843840,-778.29,0.00013149,2]
[353655972,1739983843850,-500.0,0.00013149,2]
[353655973,1739983843859,-500.0,0.00013149,2]
[353655974,1739983843868,-779.3,0.00013149,2]
[353655975,1739983843878,-679.26,0.00013149,2]
[353655976,1739983843887,-500.0,0.00013149,2]
[353655978,1739983843896,-716.81,0.00013149,2]
[353655980,1739983843906,-771.09,0.00013149,2]
[353655982,1739983843915,-500.0,0.00013149,2]
[353655984,1739983843925,-1622.98,0.00013149,2]
[353655986,1739983843935,-500.0,0.00013149,2]
[353655988,1739983843944,-1123.75,0.00013149,2]
[353655990,1739983843954,-500.0,0.00013149,2]
[353655992,1739983843963,-549.14,0.00013149,2]
[353655994,1739983843972,-555.33698801,0.00013149,2]
[353655996,1739983843981,-1225.38,0.00013149,2]
[353655998,1739983843991,-912.81,0.00013149,2]
[353656000,1739983844000,-500.0,0.00013149,2]
[353656002,1739983844010,-705.16,0.00013149,2]
[353656004,1739983844020,-500.0,0.00013149,2]
[353656006,1739983844032,-819.87,0.00013149,2]
[353656008,1739983844042,-889.08,0.00013149,2]
[353656010,1739983844051,-500.0,0.00013149,2]
[353656013,1739983844061,-500.0,0.00013149,2]
[353656015,1739983844073,-500.0,0.00013149,2]
[353656017,1739983844083,-796.11,0.00013149,2]
[353656019,1739983844092,-500.0,0.00013149,2]
[353656021,1739983844103,-500.0,0.00013149,2]
[353656023,1739983844112,-1036.4,0.00013149,2]
[353656025,1739983844121,-500.0,0.00013149,2]
[353656026,1739983844131,-500.0,0.00013149,2]
[353656029,1739983844140,-1141.59,0.00013149,2]
[353656031,1739983844151,-500.0,0.00013149,2]
[353656033,1739983844160,-500.0,0.00013149,2]
[353656035,1739983844169,-500.0,0.00013149,2]
[353656037,1739983844179,-500.0,0.00013149,2]
[353656038,1739983844189,-523.59031822,0.00013149,2]
[353656040,1739983844199,-1434.34,0.00013149,2]
[353656042,1739983844208,-500.0,0.00013149,2]
[353656044,1739983844218,-1512.24,0.00013149,2]
[353656046,1739983844227,-1156.74,0.00013149,2]
[353656049,1739983844237,-571.38,0.00013149,2]
[353656051,1739983844247,-500.0,0.00013149,2]
[353656053,1739983844257,-500.0,0.00013149,2]
[353656055,1739983844266,-500.0,0.00013149,2]
[353656057,1739983844276,-1476.82,0.00013149,2]
[353656059,1739983844286,-500.0,0.00013149,2]